[Event "*** SCC Grand Prix: Titled Tuesday Blitz"]
[Site "Chess.com"]
[Date "2020.06.09"]
[Round "9"]
[White "SargissyanSargis"]
[Black "Efremov_Vlad"]
[Result "1-0"]
[WhiteElo "2308"]
[BlackElo "2169"]
[TimeControl "180+1"]
[EndTime "10:45:40 PDT"]
[Termination "SargissyanSargis won on time"]

1. e4 {[%clk 0:02:59.4]} 1... c5 {[%clk 0:03:00]} 2. Nc3 {[%clk 0:02:58.1]} 2...
Nc6 {[%clk 0:02:59.3]} 3. Bb5 {[%clk 0:02:57.8]} 3... Nd4 {[%clk 0:02:59.2]} 4.
Bc4 {[%clk 0:02:57.7]} 4... e6 {[%clk 0:02:59.6]} 5. Nge2 {[%clk 0:02:58]} 5...
a6 {[%clk 0:02:57]} 6. Nxd4 {[%clk 0:02:58]} 6... cxd4 {[%clk 0:02:56.7]} 7. Ne2
{[%clk 0:02:58.5]} 7... b5 {[%clk 0:02:46.1]} 8. Bb3 {[%clk 0:02:58.1]} 8... Qb6
{[%clk 0:02:41.7]} 9. O-O {[%clk 0:02:46.7]} 9... d6 {[%clk 0:02:37.5]} 10. d3
{[%clk 0:02:42.6]} 10... Nf6 {[%clk 0:02:35.2]} 11. c3 {[%clk 0:02:36.1]} 11...
dxc3 {[%clk 0:02:31.2]} 12. bxc3 {[%clk 0:02:35.4]} 12... Be7 {[%clk 0:02:28]}
13. Be3 {[%clk 0:02:34.7]} 13... Qc7 {[%clk 0:02:25.5]} 14. h3 {[%clk
0:02:34.2]} 14... O-O {[%clk 0:02:23.1]} 15. f4 {[%clk 0:02:34.6]} 15... Bb7
{[%clk 0:02:13.3]} 16. f5 {[%clk 0:02:33.1]} 16... d5 {[%clk 0:01:34.7]} 17.
fxe6 {[%clk 0:02:26.2]} 17... fxe6 {[%clk 0:01:33.3]} 18. Nf4 {[%clk 0:02:20.4]}
18... Qxc3 {[%clk 0:01:31.6]} 19. Nxe6 {[%clk 0:02:17.2]} 19... Rfc8 {[%clk
0:01:25]} 20. Bd4 {[%clk 0:02:02.8]} 20... Qc6 {[%clk 0:01:06.2]} 21. exd5
{[%clk 0:01:59.5]} 21... Qd6 {[%clk 0:00:46.4]} 22. Bxf6 {[%clk 0:01:50.8]}
22... Bxf6 {[%clk 0:00:45.5]} 23. Rxf6 {[%clk 0:01:44.5]} 23... gxf6 {[%clk
0:00:33.5]} 24. Qg4+ {[%clk 0:01:44.9]} 24... Kf7 {[%clk 0:00:34.1]} 25. Qg7+
{[%clk 0:01:38.9]} 25... Ke8 {[%clk 0:00:34.1]} 26. Qxb7 {[%clk 0:01:09.7]}
26... Rab8 {[%clk 0:00:13.3]} 27. Qxh7 {[%clk 0:01:08]} 27... Rc3 {[%clk
0:00:09.5]} 28. Re1 {[%clk 0:00:52.3]} 28... Qb6+ {[%clk 0:00:07.3]} 29. Kh1
{[%clk 0:00:51.7]} 1-0

[Event "*** SCC Grand Prix: Titled Tuesday Blitz"]
[Site "Chess.com"]
[Date "2020.06.09"]
[Round "9"]
[White "tigra"]
[Black "LyonBeast"]
[Result "0-1"]
[WhiteElo "2752"]
[BlackElo "2979"]
[TimeControl "180+1"]
[EndTime "10:45:42 PDT"]
[Termination "LyonBeast won by resignation"]

1. e4 {[%clk 0:02:58.4]} 1... c5 {[%clk 0:02:58.4]} 2. Na3 {[%clk 0:02:56.8]}
2... g6 {[%clk 0:02:57.7]} 3. c3 {[%clk 0:02:55.7]} 3... Bg7 {[%clk 0:02:57.6]}
4. Nf3 {[%clk 0:02:52.3]} 4... Nf6 {[%clk 0:02:55.8]} 5. e5 {[%clk 0:02:46.9]}
5... Nd5 {[%clk 0:02:55.2]} 6. d4 {[%clk 0:02:47.2]} 6... cxd4 {[%clk
0:02:54.9]} 7. Qxd4 {[%clk 0:02:47]} 7... Nc7 {[%clk 0:02:51.5]} 8. Qh4 {[%clk
0:02:40.4]} 8... h6 {[%clk 0:02:47.4]} 9. Qg3 {[%clk 0:02:13.6]} 9... Nc6 {[%clk
0:02:45.1]} 10. Bd3 {[%clk 0:02:02.5]} 10... Ne6 {[%clk 0:02:25.8]} 11. O-O
{[%clk 0:02:00.7]} 11... b6 {[%clk 0:02:25.3]} 12. Bd2 {[%clk 0:01:36.7]} 12...
Bb7 {[%clk 0:02:23.5]} 13. Rfe1 {[%clk 0:01:34.7]} 13... O-O {[%clk 0:01:59.7]}
14. Rad1 {[%clk 0:01:34.1]} 14... a6 {[%clk 0:01:39.3]} 15. h4 {[%clk
0:01:33.7]} 15... h5 {[%clk 0:01:38.3]} 16. Nc2 {[%clk 0:01:27.7]} 16... Qc7
{[%clk 0:01:34.5]} 17. Ncd4 {[%clk 0:01:22.9]} 17... Ncxd4 {[%clk 0:01:34.6]}
18. Nxd4 {[%clk 0:01:19.6]} 18... Rad8 {[%clk 0:01:29.1]} 19. Bc1 {[%clk
0:00:55.6]} 19... Rfe8 {[%clk 0:01:17.5]} 20. Bb1 {[%clk 0:00:47.6]} 20... Qc8
{[%clk 0:01:00.5]} 21. Nf3 {[%clk 0:00:30.3]} 21... Bxf3 {[%clk 0:00:56.5]} 22.
Qxf3 {[%clk 0:00:30.3]} 22... d6 {[%clk 0:00:46]} 23. exd6 {[%clk 0:00:30.2]}
23... Rxd6 {[%clk 0:00:46.8]} 24. Rxd6 {[%clk 0:00:29.6]} 24... exd6 {[%clk
0:00:47.7]} 25. Rd1 {[%clk 0:00:22.4]} 25... Qc4 {[%clk 0:00:45.3]} 26. g3
{[%clk 0:00:19.5]} 26... Qc7 {[%clk 0:00:44.1]} 27. Qd5 {[%clk 0:00:18.4]} 27...
Bf8 {[%clk 0:00:41.9]} 28. Re1 {[%clk 0:00:18.5]} 28... Qc8 {[%clk 0:00:39.9]}
29. Bc2 {[%clk 0:00:17.9]} 29... Nc7 {[%clk 0:00:34.3]} 30. Qf3 {[%clk
0:00:18.1]} 30... Rxe1+ {[%clk 0:00:33.9]} 0-1

[Event "*** SCC Grand Prix: Titled Tuesday Blitz"]
[Site "Chess.com"]
[Date "2020.06.09"]
[Round "9"]
[White "Shtembuliak"]
[Black "VincentKeymer"]
[Result "0-1"]
[WhiteElo "2841"]
[BlackElo "2778"]
[TimeControl "180+1"]
[EndTime "10:45:44 PDT"]
[Termination "VincentKeymer won on time"]

1. c4 {[%clk 0:03:00.9]} 1... e6 {[%clk 0:02:59.8]} 2. Nc3 {[%clk 0:03:00.3]}
2... d5 {[%clk 0:03:00]} 3. d4 {[%clk 0:03:00.9]} 3... Nf6 {[%clk 0:03:00.3]} 4.
cxd5 {[%clk 0:02:59.9]} 4... Nxd5 {[%clk 0:03:01.2]} 5. e4 {[%clk 0:02:59.7]}
5... Nxc3 {[%clk 0:03:01.2]} 6. bxc3 {[%clk 0:03:00.6]} 6... c5 {[%clk
0:03:01.8]} 7. Nf3 {[%clk 0:03:01.4]} 7... cxd4 {[%clk 0:03:02.1]} 8. cxd4
{[%clk 0:03:02.3]} 8... Bb4+ {[%clk 0:03:02.4]} 9. Bd2 {[%clk 0:03:02.9]} 9...
Bxd2+ {[%clk 0:03:03]} 10. Qxd2 {[%clk 0:03:03.8]} 10... O-O {[%clk 0:03:03.4]}
11. Bc4 {[%clk 0:03:04.1]} 11... Nd7 {[%clk 0:03:03.6]} 12. O-O {[%clk
0:03:04.1]} 12... b6 {[%clk 0:03:04.2]} 13. Rad1 {[%clk 0:03:04.4]} 13... Bb7
{[%clk 0:03:03.9]} 14. Rfe1 {[%clk 0:03:04.9]} 14... Rc8 {[%clk 0:03:04.4]} 15.
Bb3 {[%clk 0:03:04.4]} 15... h6 {[%clk 0:03:04.3]} 16. h3 {[%clk 0:02:58.5]}
16... Nf6 {[%clk 0:03:04]} 17. Qf4 {[%clk 0:02:58.3]} 17... Qc7 {[%clk
0:03:00.9]} 18. Qh4 {[%clk 0:02:57]} 18... b5 {[%clk 0:02:51.8]} 19. d5 {[%clk
0:02:51.6]} 19... exd5 {[%clk 0:02:50.1]} 20. exd5 {[%clk 0:02:47.3]} 20... Qd6
{[%clk 0:02:33]} 21. Nd4 {[%clk 0:02:39.6]} 21... Qd7 {[%clk 0:02:33.1]} 22. d6
{[%clk 0:01:59.8]} 22... Rfe8 {[%clk 0:02:24.1]} 23. Qf4 {[%clk 0:01:50.8]}
23... Be4 {[%clk 0:01:53.3]} 24. f3 {[%clk 0:01:39.7]} 24... Bg6 {[%clk
0:01:53]} 25. Rxe8+ {[%clk 0:01:00.4]} 25... Nxe8 {[%clk 0:01:43.8]} 26. Nxb5
{[%clk 0:00:31.8]} 26... Qxb5 {[%clk 0:01:24]} 27. d7 {[%clk 0:00:32.1]} 27...
Rd8 {[%clk 0:01:13.7]} 28. dxe8=Q+ {[%clk 0:00:32.4]} 28... Rxe8 {[%clk
0:01:07.8]} 29. Rd6 {[%clk 0:00:30.3]} 29... Kh7 {[%clk 0:00:51.3]} 30. Kh2
{[%clk 0:00:25.6]} 30... Re7 {[%clk 0:00:41.6]} 0-1

[Event "*** SCC Grand Prix: Titled Tuesday Blitz"]
[Site "Chess.com"]
[Date "2020.06.09"]
[Round "9"]
[White "Aradej"]
[Black "DenLaz"]
[Result "0-1"]
[WhiteElo "2501"]
[BlackElo "2659"]
[TimeControl "180+1"]
[EndTime "10:45:45 PDT"]
[Termination "DenLaz won by resignation"]

1. d4 {[%clk 0:03:00.9]} 1... d5 {[%clk 0:03:00.2]} 2. Nf3 {[%clk 0:03:00.5]}
2... Nf6 {[%clk 0:02:56.2]} 3. e3 {[%clk 0:03:00.3]} 3... c6 {[%clk 0:02:54.5]}
4. Bd3 {[%clk 0:02:54.8]} 4... Bg4 {[%clk 0:02:48.5]} 5. Nbd2 {[%clk 0:02:53.7]}
5... Nbd7 {[%clk 0:02:46.7]} 6. h3 {[%clk 0:02:51.1]} 6... Bh5 {[%clk
0:02:44.9]} 7. O-O {[%clk 0:02:48.1]} 7... e5 {[%clk 0:02:38]} 8. dxe5 {[%clk
0:02:47.5]} 8... Nxe5 {[%clk 0:02:36.8]} 9. Be2 {[%clk 0:02:47.5]} 9... Nxf3+
{[%clk 0:02:34.5]} 10. Nxf3 {[%clk 0:02:45.8]} 10... Bd6 {[%clk 0:02:27.4]} 11.
c4 {[%clk 0:02:45.6]} 11... dxc4 {[%clk 0:02:25.2]} 12. Bxc4 {[%clk 0:02:44.4]}
12... Qe7 {[%clk 0:02:23.2]} 13. Be2 {[%clk 0:02:40.3]} 13... Ne4 {[%clk
0:02:12.9]} 14. Qc2 {[%clk 0:02:38.7]} 14... O-O {[%clk 0:02:08.7]} 15. Nd4
{[%clk 0:02:36.9]} 15... Bxe2 {[%clk 0:01:49.7]} 16. Qxe2 {[%clk 0:02:33.1]}
16... Qe5 {[%clk 0:01:48.2]} 17. Nf3 {[%clk 0:02:32.2]} 17... Qf6 {[%clk
0:01:43.2]} 18. Qc2 {[%clk 0:02:31]} 18... Rfe8 {[%clk 0:01:38.9]} 19. Rd1
{[%clk 0:02:30.4]} 19... Rad8 {[%clk 0:01:36.6]} 20. Bd2 {[%clk 0:02:29.7]}
20... Nxd2 {[%clk 0:01:14.3]} 21. Rxd2 {[%clk 0:02:29.3]} 21... Bb4 {[%clk
0:01:10.8]} 22. Rd4 {[%clk 0:02:25.6]} 22... Rxd4 {[%clk 0:01:09.5]} 23. Nxd4
{[%clk 0:02:25.6]} 23... Ba5 {[%clk 0:01:05.9]} 24. Rd1 {[%clk 0:02:24.3]} 24...
g6 {[%clk 0:01:05.2]} 25. b3 {[%clk 0:02:21.3]} 25... Kg7 {[%clk 0:01:03.8]} 26.
g3 {[%clk 0:02:20.2]} 26... Bb6 {[%clk 0:01:02.2]} 27. h4 {[%clk 0:02:18.4]}
27... Rd8 {[%clk 0:00:58.3]} 28. Ne2 {[%clk 0:02:01.3]} 28... Rxd1+ {[%clk
0:00:48.8]} 29. Qxd1 {[%clk 0:02:00.8]} 29... Qb2 {[%clk 0:00:48.8]} 30. a4
{[%clk 0:02:00.7]} 30... Bc7 {[%clk 0:00:45.6]} 31. Qd3 {[%clk 0:02:00.2]} 31...
Be5 {[%clk 0:00:42.5]} 32. Kg2 {[%clk 0:01:59.9]} 32... h5 {[%clk 0:00:41.7]}
33. Ng1 {[%clk 0:01:50.9]} 33... Bf6 {[%clk 0:00:40.1]} 34. Ne2 {[%clk
0:01:49.4]} 34... a5 {[%clk 0:00:37.1]} 35. Qc4 {[%clk 0:01:40.2]} 35... Qe5
{[%clk 0:00:35.2]} 36. Qc2 {[%clk 0:01:20.4]} 36... Qd5+ {[%clk 0:00:33.4]} 37.
e4 {[%clk 0:01:19.9]} 37... Qd6 {[%clk 0:00:30.8]} 38. f4 {[%clk 0:01:19.9]}
38... Qe6 {[%clk 0:00:28.9]} 39. e5 {[%clk 0:01:17.6]} 39... Be7 {[%clk
0:00:27.8]} 40. Kf3 {[%clk 0:01:15.1]} 40... Qd5+ {[%clk 0:00:26.3]} 41. Kf2
{[%clk 0:01:10.4]} 41... Bc5+ {[%clk 0:00:25.3]} 42. Ke1 {[%clk 0:01:10.1]}
42... Be3 {[%clk 0:00:20.1]} 0-1

[Event "*** SCC Grand Prix: Titled Tuesday Blitz"]
[Site "Chess.com"]
[Date "2020.06.09"]
[Round "9"]
[White "Oleksandr_Bortnyk"]
[Black "aNaartjieZA"]
[Result "0-1"]
[WhiteElo "2910"]
[BlackElo "2600"]
[TimeControl "180+1"]
[EndTime "10:45:49 PDT"]
[Termination "aNaartjieZA won on time"]

1. e4 {[%clk 0:03:00.9]} 1... e6 {[%clk 0:03:00.1]} 2. Nf3 {[%clk 0:03:00]} 2...
d5 {[%clk 0:03:00.2]} 3. e5 {[%clk 0:03:00.9]} 3... c5 {[%clk 0:03:00]} 4. b4
{[%clk 0:03:01.6]} 4... d4 {[%clk 0:02:58.3]} 5. bxc5 {[%clk 0:02:50.8]} 5...
Nc6 {[%clk 0:02:54.8]} 6. Bd3 {[%clk 0:02:51.7]} 6... Bxc5 {[%clk 0:02:53.9]} 7.
O-O {[%clk 0:02:51.8]} 7... Nge7 {[%clk 0:02:53.6]} 8. Qe2 {[%clk 0:02:49]} 8...
a6 {[%clk 0:02:52.9]} 9. a4 {[%clk 0:02:47.4]} 9... Nd5 {[%clk 0:02:52.5]} 10.
Qe4 {[%clk 0:02:43.8]} 10... Nde7 {[%clk 0:02:42.3]} 11. Ba3 {[%clk 0:02:38.3]}
11... Bxa3 {[%clk 0:02:38.1]} 12. Nxa3 {[%clk 0:02:39.2]} 12... Qd5 {[%clk
0:01:56.3]} 13. Nc4 {[%clk 0:02:32.1]} 13... Qxe4 {[%clk 0:01:54.7]} 14. Bxe4
{[%clk 0:02:33]} 14... O-O {[%clk 0:01:50.9]} 15. Nb6 {[%clk 0:02:32.2]} 15...
Rb8 {[%clk 0:01:50.4]} 16. Rfb1 {[%clk 0:02:22.5]} 16... f6 {[%clk 0:01:49.7]}
17. Nc4 {[%clk 0:02:04]} 17... f5 {[%clk 0:01:44.9]} 18. Bxc6 {[%clk 0:01:55.7]}
18... Nxc6 {[%clk 0:01:44.3]} 19. Nd6 {[%clk 0:01:56.6]} 19... b6 {[%clk
0:01:40.3]} 20. Rb2 {[%clk 0:01:38.9]} 20... Rd8 {[%clk 0:01:36.7]} 21. Nxc8
{[%clk 0:00:54.2]} 21... Rdxc8 {[%clk 0:01:29.2]} 22. Rab1 {[%clk 0:00:55.1]}
22... d3 {[%clk 0:01:16.2]} 23. cxd3 {[%clk 0:00:37]} 23... Ne7 {[%clk 0:01:14]}
24. g3 {[%clk 0:00:13.2]} 24... Nd5 {[%clk 0:01:11]} 25. Kf1 {[%clk 0:00:09.6]}
25... h6 {[%clk 0:01:10.5]} 26. h4 {[%clk 0:00:08.7]} 26... Kf7 {[%clk 0:01:10]}
27. h5 {[%clk 0:00:04.2]} 27... Rc5 {[%clk 0:01:09.5]} 28. Nd4 {[%clk
0:00:02.5]} 28... Rb7 {[%clk 0:01:03.2]} 29. Ke2 {[%clk 0:00:01.7]} 29... Ke7
{[%clk 0:00:57.9]} 30. Nb3 {[%clk 0:00:01.1]} 30... Rc8 {[%clk 0:00:55.7]} 31.
Na5 {[%clk 0:00:01.8]} 31... Rbc7 {[%clk 0:00:54.6]} 32. Nc4 {[%clk 0:00:02.7]}
32... Rxc4 {[%clk 0:00:51.7]} 33. dxc4 {[%clk 0:00:02.8]} 33... Rxc4 {[%clk
0:00:51.7]} 34. a5 {[%clk 0:00:01.7]} 34... b5 {[%clk 0:00:50.7]} 0-1

[Event "*** SCC Grand Prix: Titled Tuesday Blitz"]
[Site "Chess.com"]
[Date "2020.06.09"]
[Round "9"]
[White "Nara_Kh"]
[Black "Kapibara_Warri0r"]
[Result "0-1"]
[WhiteElo "2246"]
[BlackElo "2118"]
[TimeControl "180+1"]
[EndTime "10:45:49 PDT"]
[Termination "Kapibara_Warri0r won by checkmate"]

1. e4 {[%clk 0:03:00.9]} 1... e5 {[%clk 0:02:59.7]} 2. Nf3 {[%clk 0:02:57.9]}
2... Nc6 {[%clk 0:02:59.3]} 3. Bb5 {[%clk 0:02:55.7]} 3... a6 {[%clk 0:02:58.9]}
4. Ba4 {[%clk 0:02:55.6]} 4... g6 {[%clk 0:02:54.7]} 5. O-O {[%clk 0:02:53]}
5... d6 {[%clk 0:02:54.2]} 6. c3 {[%clk 0:02:52.3]} 6... Bg7 {[%clk 0:02:50.4]}
7. h3 {[%clk 0:02:50.2]} 7... Nf6 {[%clk 0:02:47.2]} 8. d3 {[%clk 0:02:50.1]}
8... O-O {[%clk 0:02:44.9]} 9. Nbd2 {[%clk 0:02:44.1]} 9... Nh5 {[%clk
0:02:38.3]} 10. Re1 {[%clk 0:02:31.5]} 10... Nf4 {[%clk 0:02:36.4]} 11. Nf1
{[%clk 0:02:30.8]} 11... f5 {[%clk 0:02:05.2]} 12. Bxf4 {[%clk 0:02:17.6]} 12...
exf4 {[%clk 0:02:06.1]} 13. exf5 {[%clk 0:02:13]} 13... gxf5 {[%clk 0:01:57.5]}
14. d4 {[%clk 0:02:11.4]} 14... Kh8 {[%clk 0:01:52.8]} 15. N1d2 {[%clk
0:02:00.5]} 15... Rg8 {[%clk 0:01:42.1]} 16. Kh1 {[%clk 0:01:49.8]} 16... Ne7
{[%clk 0:01:27.6]} 17. Bb3 {[%clk 0:01:46.9]} 17... d5 {[%clk 0:01:27]} 18. Ne5
{[%clk 0:01:45.7]} 18... Bxe5 {[%clk 0:01:17.5]} 19. Rxe5 {[%clk 0:01:45.1]}
19... c6 {[%clk 0:01:15.8]} 20. Nf3 {[%clk 0:01:44.4]} 20... Ng6 {[%clk
0:01:13.4]} 21. Re1 {[%clk 0:01:41.1]} 21... Nh4 {[%clk 0:01:04.2]} 22. Nxh4
{[%clk 0:01:36.6]} 22... Qxh4 {[%clk 0:01:05.1]} 23. Qf3 {[%clk 0:01:37.2]}
23... Bd7 {[%clk 0:00:50.5]} 24. Re5 {[%clk 0:01:34]} 24... Rg7 {[%clk
0:00:32.4]} 25. Bc2 {[%clk 0:01:28]} 25... Rag8 {[%clk 0:00:27.7]} 26. Rg1
{[%clk 0:01:25.9]} 26... Rg5 {[%clk 0:00:14.4]} 27. Bd3 {[%clk 0:01:10.1]} 27...
Bc8 {[%clk 0:00:14]} 28. b4 {[%clk 0:01:00.9]} 28... Bd7 {[%clk 0:00:14.1]} 29.
a3 {[%clk 0:01:00.6]} 29... Be8 {[%clk 0:00:14.1]} 30. a4 {[%clk 0:01:00.5]}
30... Bh5 {[%clk 0:00:13.9]} 31. g4 {[%clk 0:00:39.7]} 31... fxg3 {[%clk
0:00:11.6]} 32. Qxg3 {[%clk 0:00:39.2]} 32... Rxg3 {[%clk 0:00:11.2]} 33. fxg3
{[%clk 0:00:38.5]} 33... Qxh3# {[%clk 0:00:11.1]} 0-1

[Event "*** SCC Grand Prix: Titled Tuesday Blitz"]
[Site "Chess.com"]
[Date "2020.06.09"]
[Round "9"]
[White "Glek_Igor"]
[Black "PavelChernomordik"]
[Result "0-1"]
[WhiteElo "2418"]
[BlackElo "2289"]
[TimeControl "180+1"]
[EndTime "10:45:50 PDT"]
[Termination "PavelChernomordik won by checkmate"]

1. e4 {[%clk 0:03:00.9]} 1... g6 {[%clk 0:03:00]} 2. d4 {[%clk 0:02:59.9]} 2...
Bg7 {[%clk 0:03:00.9]} 3. Nc3 {[%clk 0:03:00]} 3... d6 {[%clk 0:03:01]} 4. f4
{[%clk 0:02:59.9]} 4... a6 {[%clk 0:03:01.1]} 5. Nf3 {[%clk 0:02:59.4]} 5... b5
{[%clk 0:03:01.2]} 6. Bd3 {[%clk 0:02:59.9]} 6... Nd7 {[%clk 0:03:01.1]} 7. Be3
{[%clk 0:03:00.1]} 7... c5 {[%clk 0:02:58.5]} 8. e5 {[%clk 0:02:57.3]} 8... Qc7
{[%clk 0:02:48.6]} 9. Nd5 {[%clk 0:02:09.1]} 9... Qd8 {[%clk 0:02:45.6]} 10.
dxc5 {[%clk 0:02:00.1]} 10... Nxc5 {[%clk 0:02:41.5]} 11. Bxc5 {[%clk
0:01:58.8]} 11... dxc5 {[%clk 0:02:40.8]} 12. Be4 {[%clk 0:01:58.1]} 12... Ra7
{[%clk 0:02:29.6]} 13. Qe2 {[%clk 0:01:46.9]} 13... Nh6 {[%clk 0:02:25.7]} 14.
O-O-O {[%clk 0:01:34.4]} 14... Qa5 {[%clk 0:02:22.2]} 15. Kb1 {[%clk 0:01:20]}
15... O-O {[%clk 0:02:19]} 16. h3 {[%clk 0:01:20.4]} 16... Nf5 {[%clk
0:02:17.4]} 17. Bxf5 {[%clk 0:01:18.2]} 17... Bxf5 {[%clk 0:02:15.6]} 18. g4
{[%clk 0:01:18.5]} 18... Be6 {[%clk 0:02:14.8]} 19. f5 {[%clk 0:01:18.2]} 19...
Bxd5 {[%clk 0:02:11]} 20. Rxd5 {[%clk 0:01:18.7]} 20... Qb6 {[%clk 0:02:09.6]}
21. Rhd1 {[%clk 0:01:09.6]} 21... Qc6 {[%clk 0:02:01.7]} 22. h4 {[%clk
0:00:49.8]} 22... c4 {[%clk 0:01:46.6]} 23. Qe3 {[%clk 0:00:41.1]} 23... Rc7
{[%clk 0:01:45]} 24. h5 {[%clk 0:00:37.8]} 24... b4 {[%clk 0:01:31.8]} 25. hxg6
{[%clk 0:00:25.9]} 25... hxg6 {[%clk 0:01:30.1]} 26. Ng5 {[%clk 0:00:17]} 26...
b3 {[%clk 0:01:20.6]} 27. Qh3 {[%clk 0:00:14.5]} 27... bxc2+ {[%clk 0:01:14.8]}
28. Kxc2 {[%clk 0:00:14.9]} 28... Re8 {[%clk 0:01:12]} 29. Qh7+ {[%clk
0:00:12.1]} 29... Kf8 {[%clk 0:01:11.2]} 30. e6 {[%clk 0:00:09.3]} 30... Qa4+
{[%clk 0:01:05.4]} 31. Kc1 {[%clk 0:00:07.5]} 31... c3 {[%clk 0:01:05.3]} 32.
bxc3 {[%clk 0:00:02.5]} 32... Rxc3+ {[%clk 0:01:03.4]} 33. Kd2 {[%clk 0:00:03]}
33... Qc2+ {[%clk 0:01:01.1]} 34. Ke1 {[%clk 0:00:03]} 34... Re3+ {[%clk
0:00:59.7]} 35. Kf1 {[%clk 0:00:03.5]} 35... Qe2+ {[%clk 0:00:59.4]} 36. Kg1
{[%clk 0:00:03.6]} 36... Rg3+ {[%clk 0:00:58.8]} 37. Kh1 {[%clk 0:00:04.1]}
37... Qg2# {[%clk 0:00:58.4]} 0-1

[Event "*** SCC Grand Prix: Titled Tuesday Blitz"]
[Site "Chess.com"]
[Date "2020.06.09"]
[Round "9"]
[White "GuuBol"]
[Black "djano"]
[Result "1-0"]
[WhiteElo "2251"]
[BlackElo "2385"]
[TimeControl "180+1"]
[EndTime "10:45:51 PDT"]
[Termination "GuuBol won by resignation"]

1. e4 {[%clk 0:03:00.9]} 1... c5 {[%clk 0:03:00.9]} 2. d4 {[%clk 0:03:00.9]}
2... cxd4 {[%clk 0:03:00.8]} 3. c3 {[%clk 0:03:01.5]} 3... d3 {[%clk 0:03:01.4]}
4. c4 {[%clk 0:03:00.9]} 4... g6 {[%clk 0:03:01.5]} 5. Bxd3 {[%clk 0:03:01.2]}
5... Bg7 {[%clk 0:03:02]} 6. Nf3 {[%clk 0:03:01.7]} 6... Nc6 {[%clk 0:03:02.6]}
7. O-O {[%clk 0:03:01.8]} 7... d6 {[%clk 0:03:03.1]} 8. h3 {[%clk 0:03:01.2]}
8... Nf6 {[%clk 0:03:03.1]} 9. Nc3 {[%clk 0:03:01.9]} 9... O-O {[%clk
0:03:03.2]} 10. Be3 {[%clk 0:02:59.1]} 10... b6 {[%clk 0:03:03.3]} 11. Rc1
{[%clk 0:02:58.8]} 11... Bb7 {[%clk 0:03:03.8]} 12. Qe2 {[%clk 0:02:58.1]} 12...
e6 {[%clk 0:03:04.1]} 13. Rfd1 {[%clk 0:02:58.1]} 13... Qe8 {[%clk 0:03:04.3]}
14. Nb5 {[%clk 0:02:51.1]} 14... Qe7 {[%clk 0:03:03.9]} 15. Bb1 {[%clk
0:02:45.6]} 15... Rfd8 {[%clk 0:03:03.8]} 16. b3 {[%clk 0:02:43]} 16... a6
{[%clk 0:03:03.3]} 17. Nc3 {[%clk 0:02:43]} 17... Nd7 {[%clk 0:02:57.5]} 18. a4
{[%clk 0:02:36.7]} 18... Nc5 {[%clk 0:02:54]} 19. Qc2 {[%clk 0:02:25.8]} 19...
Nb4 {[%clk 0:02:52]} 20. Qb2 {[%clk 0:02:21.7]} 20... Nxe4 {[%clk 0:02:45.6]}
21. Bxe4 {[%clk 0:02:18.5]} 21... Bxe4 {[%clk 0:02:45.2]} 22. Qe2 {[%clk
0:02:05.1]} 22... Bb7 {[%clk 0:02:36.2]} 23. Bxb6 {[%clk 0:02:04.3]} 23... Rd7
{[%clk 0:02:30.6]} 24. a5 {[%clk 0:01:51.2]} 24... Re8 {[%clk 0:02:21.7]} 25.
Ne4 {[%clk 0:01:35.2]} 25... f5 {[%clk 0:02:18.1]} 26. Nc3 {[%clk 0:01:30.6]}
26... Qf7 {[%clk 0:02:14.9]} 27. Qd2 {[%clk 0:01:18.9]} 27... d5 {[%clk
0:02:06.8]} 28. Na4 {[%clk 0:01:16.2]} 28... Nc6 {[%clk 0:01:44.3]} 29. Nc5
{[%clk 0:01:15.5]} 29... Rde7 {[%clk 0:01:44.6]} 30. cxd5 {[%clk 0:01:13.5]}
30... exd5 {[%clk 0:01:43.1]} 31. Nxb7 {[%clk 0:01:11.7]} 31... Rxb7 {[%clk
0:01:44]} 32. Qxd5 {[%clk 0:01:12]} 32... Nb4 {[%clk 0:01:31.6]} 33. Qd2 {[%clk
0:01:06]} 33... Bf8 {[%clk 0:01:22.7]} 34. Ng5 {[%clk 0:01:04.7]} 34... Qf6
{[%clk 0:01:16.5]} 35. h4 {[%clk 0:01:00.8]} 35... Rxb6 {[%clk 0:01:07.6]} 36.
axb6 {[%clk 0:00:59.4]} 36... Qxb6 {[%clk 0:01:08.5]} 37. Qd7 {[%clk 0:00:53.6]}
37... Re7 {[%clk 0:01:06]} 38. Qd4 {[%clk 0:00:51.5]} 38... Qb7 {[%clk
0:01:01.3]} 39. Qc4+ {[%clk 0:00:50.8]} 39... Kh8 {[%clk 0:00:56.9]} 40. Rd8
{[%clk 0:00:49.4]} 40... Kg7 {[%clk 0:00:39]} 41. Ne6+ {[%clk 0:00:49.5]} 41...
Rxe6 {[%clk 0:00:37.8]} 42. Qxe6 {[%clk 0:00:50.4]} 42... Qb5 {[%clk 0:00:32.9]}
43. Rd7+ {[%clk 0:00:44.8]} 43... Kh6 {[%clk 0:00:31.4]} 44. Qe3+ {[%clk
0:00:43.2]} 1-0